bitfinex/quotes_ETHUSD_20250331
["timestamp","ask_amount","ask_price","bid_price","bid_amount"]
[1743435273822,5.42065,1844.8,1844.3,0.55]
[1743435274144,0.03333183,1844.8,1844.4,5.42179]
[1743435274346,10.87497183,1844.8,1844.5,5.947]
[1743435274550,10.84164,1844.8,1844.5,5.947]
[1743435274751,0.7823,1844.5,1844.2,41.461]
[1743435274959,10.22138577,1844.5,1844.3,5.947]
[1743435275143,5.42181,1844.4,1844.3,5.947]
[1743435275453,8.45514183,1844.4,1844.3,5.947]
[1743435275745,8.42211,1844.3,1844.2,37.218]
[1743435275949,9.84316701,1844.3,1844.2,37.218]
[1743435276161,3.03333183,1844.3,1844.2,37.218]
[1743435276448,11.62562,1844.5,1844.2,37.218]
[1743435276747,5.42211,1844.3,1844.2,37.218]
[1743435276952,4.0507576,1844.4,1844.2,37.218]
[1743435276953,9.4728576,1844.4,1844.2,37.218]
[1743435277150,0.03333183,1844.4,1844.2,37.218]
[1743435277351,0.7823,1844.5,1844.2,52.326687]
[1743435277520,5.42162,1844.5,1844.2,41.482057]
[1743435277852,5.42157,1844.5,1844.2,37.218]
[1743435278052,5.42184,1844.4,1844.2,37.218]
[1743435278255,10.84324,1844.5,1844.2,37.218]
[1743435278550,10.87658183,1844.5,1844.2,37.218]
[1743435278959,5.45486183,1844.5,1844.2,42.64025]
[1743435279161,0.03333183,1844.5,1844.3,5.42193]
[1743435279470,5.42161,1844.5,1844.2,47.446628]
[1743435279769,0.03333183,1844.5,1844.2,52.868858]
[1743435279974,5.42124,1844.6,1844.3,10.7089658]
[1743435280170,5.42095,1844.7,1844.3,10.7088258]
[1743435280466,5.42123,1844.6,1844.3,10.7088258]
[1743435280674,5.4216,1844.5,1844.3,5.2868858]
[1743435280844,9.43865577,1844.6,1844.3,5.2868858]
[1743435281047,9.43871577,1844.6,1844.3,10.7089758]
[1743435281257,5.42152,1844.5,1844.4,1.07089758]
[1743435281438,9.43871577,1844.6,1844.3,5.2868858]
[1743435281842,9.43871577,1844.6,1844.3,10.7089458]
[1743435282060,9.4720476,1844.6,1844.3,5.2868858]
[1743435282269,5.42098,1844.7,1844.4,5.42169]
[1743435282466,9.43769577,1845.0,1844.5,5.42132]
[1743435282654,9.4709976,1845.0,1844.6,5.963262]
[1743435282855,0.8097,1845.1,1844.6,5.963262]
[1743435282856,0.03333183,1845.1,1844.7,5.945]
[1743435283046,5.4198,1845.1,1844.7,11.36588]
[1743435283246,9.43815577,1844.8,1844.6,0.542132]
[1743435283448,4.01742577,1844.8,1844.7,5.945]
[1743435283675,5.42064,1844.8,1844.7,5.945]
[1743435283974,9.4713976,1844.8,1844.7,5.945]
[1743435284343,9.43806577,1844.8,1844.7,5.945]
[1743435284548,9.4713976,1844.8,1844.7,5.945]
[1743435284869,5.4213,1844.6,1844.3,16.16205]
[1743435285061,5.42096,1844.7,1844.4,6.495]
[1743435285264,8.42096,1844.7,1844.4,6.495]
[1743435285662,5.42152,1844.5,1844.4,5.945]
[1743435285866,9.43875577,1844.6,1844.4,5.945]
[1743435286272,9.4720876,1844.6,1844.4,5.945]
[1743435286475,5.42152,1844.5,1844.2,32.5721]
[1743435286777,5.42182,1844.4,1844.3,5.944]
[1743435286952,5.42182,1844.4,1844.2,31.271]
[1743435287157,5.42182,1844.4,1844.3,5.944]
[1743435288076,6.18142,1844.5,1844.3,5.944]
[1743435288277,0.7599,1844.5,1844.3,5.944]
[1743435288473,9.43923577,1844.4,1844.3,5.944]
[1743435288679,9.4725676,1844.4,1844.3,5.944]
[1743435289176,9.43923577,1844.4,1844.3,5.944]
[1743435289564,9.4725676,1844.4,1844.3,5.944]
[1743435289766,9.4725676,1844.4,1843.8,5.42356]
[1743435289767,5.42345,1843.9,1843.5,0.8095]
[1743435289971,10.84698,1843.9,1843.6,5.944]
[1743435290165,5.45678183,1843.9,1843.5,6.23382]
[1743435290355,6.19799,1843.7,1843.4,31.266]
[1743435290555,14.8995976,1843.6,1843.5,5.944]
[1743435290766,9.44182577,1843.6,1843.5,5.944]
[1743435291370,9.4751576,1843.6,1843.5,5.944]
[1743435291570,9.44182577,1843.6,1843.5,5.944]
[1743435291968,9.4751576,1843.6,1843.5,5.944]
[1743435292280,9.44182577,1843.6,1843.5,5.944]
[1743435292503,5.42446,1843.5,1843.4,31.266]
[1743435292675,5.42446,1843.5,1843.4,37.21]
[1743435292877,5.45779183,1843.5,1843.4,37.21]
[1743435293576,9.94775359,1843.5,1843.4,31.266]
[1743435293782,5.42516,1843.3,1843.1,0.05]
[1743435294081,5.42478,1843.4,1843.2,5.945]
[1743435294082,5.42477,1843.4,1843.2,5.945]
[1743435294291,8.42505,1843.3,1843.2,5.945]
[1743435295694,8.42505,1843.3,1843.1,0.05]
[1743435295895,8.45838183,1843.3,1843.2,5.944]
[1743435297266,9.24878183,1843.3,1843.2,5.944]
[1743435297467,5.42534,1843.2,1843.1,0.05]
[1743435297665,5.42534,1843.2,1843.1,5.995]
[1743435298166,5.45867183,1843.2,1843.1,5.995]
[1743435298474,9.4760976,1843.2,1843.1,5.995]
[1743435299588,4.0507576,1843.2,1843.1,0.05]
[1743435299903,5.42448,1843.5,1843.2,0.55]
[1743435300284,5.42457,1843.5,1843.1,0.6495]
[1743435300459,9.44161577,1843.6,1843.2,5.97515]
[1743435300659,4.84472577,1843.8,1843.5,5.42417]
[1743435300871,5.42387,1843.7,1843.6,5.945]
[1743435301170,6.45406276,1843.7,1843.6,5.945]
[1743435301479,5.42387,1843.7,1843.6,5.945]
[1743435301674,10.25195577,1844.1,1843.7,5.42371]
[1743435301876,5.45651183,1844.0,1843.6,5.945]
[1743435302073,13.8469,1843.9,1843.6,5.945]
[1743435302393,4.01742577,1843.7,1843.6,5.945]
[1743435302701,5.42446,1843.5,1843.4,31.281]
[1743435302995,5.42489,1843.4,1843.2,5.945]
[1743435303775,9.4752176,1843.5,1843.2,5.945]
[1743435303976,5.42452,1843.5,1843.2,11.37029]
[1743435304180,5.4249,1843.4,1843.2,5.945]
[1743435304397,0.03333183,1843.5,1843.2,6.5445]
[1743435304568,0.03333183,1843.5,1843.2,11.96973]
[1743435304772,5.42489,1843.4,1843.2,5.945]
[1743435304997,10.84987,1843.4,1843.2,5.945]
[1743435305302,5.42505,1843.3,1843.1,0.05]
[1743435305484,5.45838183,1843.3,1843.1,0.05]
[1743435305685,0.03333183,1843.3,1843.1,5.47562]
[1743435305898,5.45854183,1843.3,1843.1,0.05]
[1743435306098,9.4755476,1843.4,1843.1,0.05]
[1743435306701,4.99831236,1843.4,1843.1,0.05]
[1743435306870,5.42534,1843.2,1843.1,0.05]
[1743435307677,9.44276577,1843.2,1843.1,0.05]
[1743435307900,9.44276577,1843.2,1843.1,5.994]
[1743435308097,5.42476,1843.4,1843.1,5.994]
[1743435308098,5.42488,1843.4,1843.1,5.994]
[1743435308299,0.03333183,1843.3,1843.1,11.41963]
[1743435308491,5.45853183,1843.3,1843.1,5.994]
[1743435308691,10.88379183,1843.3,1843.1,5.994]
[1743435308899,10.56433678,1843.3,1843.1,0.05]
[1743435309205,12.44209577,1843.5,1843.2,5.944]
[1743435309382,5.42477,1843.4,1843.2,5.944]
[1743435309700,5.42505,1843.3,1843.2,5.944]
[1743435310099,5.45810183,1843.4,1843.2,5.944]
[1743435310398,8.42455,1843.5,1843.2,5.944]
[1743435310601,9.44238577,1843.4,1843.2,5.944]
[1743435311196,3.0,1843.4,1843.2,5.944]
[1743435311904,3.0,1843.6,1843.3,5.42495]
[1743435312066,10.20399577,1843.8,1843.4,5.4246]
[1743435312267,6.18591,1844.0,1843.6,5.42412]
[1743435312468,9.43956577,1844.3,1843.8,10.84688]
[1743435312797,8.42243,1844.2,1843.8,5.42345]
[1743435312997,13.84502,1844.2,1843.8,5.42345]
[1743435313203,8.42243,1844.2,1843.8,5.42343]
[1743435313498,5.42241,1844.2,1843.9,5.42315]
[1743435313667,3.0,1844.2,1844.0,5.42274]
[1743435313870,9.43868577,1844.6,1844.1,5.42254]
[1743435314065,9.43868577,1844.6,1844.2,5.944]
[1743435314066,0.03333183,1844.5,1844.2,5.944]
[1743435314280,9.43943577,1844.4,1844.2,5.944]
[1743435314493,9.43943577,1844.4,1843.8,10.74]
[1743435314494,5.42282,1844.1,1843.8,10.74]
[1743435314665,5.42282,1844.1,1843.9,5.944]
[1743435314666,5.45632183,1844.0,1843.9,5.944]
[1743435315070,9.4737476,1844.0,1843.9,5.944]
[1743435315265,5.42299,1844.0,1843.9,5.944]
[1743435315704,0.03333183,1844.1,1843.9,11.36726]
[1743435315872,3.0,1844.1,1843.9,12.503986]
[1743435316067,3.7791,1844.3,1844.0,5.42299]
[1743435316281,3.0,1844.3,1844.0,5.42283]
[1743435316483,3.0,1844.3,1843.9,7.080726]
[1743435316679,5.42255,1844.2,1843.9,7.080726]
[1743435316884,5.42227,1844.3,1844.0,0.7080726]
[1743435317302,3.0,1844.3,1844.0,6.1310626]
[1743435317508,8.45559183,1844.3,1844.0,0.7080726]
[1743435317703,8.45559183,1844.3,1844.0,0.55]
[1743435317903,4.79532577,1844.6,1844.2,5.42229]
[1743435318101,5.42094,1844.7,1844.3,5.42187]
[1743435318309,5.45427183,1844.7,1844.4,5.942]
[1743435318502,5.42124,1844.6,1844.4,5.942]
[1743435318704,8.42124,1844.6,1844.4,6.5362]
[1743435318911,3.0,1844.6,1844.4,6.5362]
[1743435319206,5.42065,1844.8,1844.5,0.8203]
[1743435319381,5.42065,1844.8,1844.4,12.01209403]
[1743435319382,5.42109,1844.7,1844.4,6.5362]
[1743435319582,5.42109,1844.7,1844.4,11.95799]
[1743435319780,9.43807577,1844.8,1844.4,11.95799]
[1743435320033,9.43807577,1844.8,1844.4,6.5362]
[1743435320034,5.42133,1844.6,1844.4,6.5362]
[1743435320999,8.42171,1844.5,1844.1,0.7664]
[1743435321202,8.45504183,1844.5,1844.2,5.941]
[1743435321516,13.87662183,1844.5,1844.2,5.941]
[1743435321715,5.42183,1844.4,1844.2,5.941]
[1743435321875,5.45544183,1844.3,1844.2,5.941]
[1743435322074,5.42211,1844.3,1844.2,5.941]
[1743435322309,11.15001715,1844.3,1844.0,5.941]
[1743435322621,9.44011577,1844.1,1844.0,5.941]
[1743435322800,5.42328,1843.9,1843.4,5.941]
[1743435323119,3.03333183,1843.8,1843.4,5.941]
[1743435323338,3.03333183,1843.8,1843.5,5.42438]
[1743435323614,5.42399,1843.7,1843.4,6.7193]
[1743435323905,3.0,1843.7,1843.4,6.61293]
[1743435324081,8.42397,1843.7,1843.4,6.61293]
[1743435324424,5.42457,1843.5,1843.2,0.8164]
[1743435324589,5.42498,1843.4,1843.1,0.05]
[1743435324778,4.0507576,1843.4,1843.3,5.94]
[1743435324985,8.42457,1843.5,1843.3,5.94]
[1743435325222,3.03333183,1843.5,1843.3,5.94]
[1743435325412,5.42475,1843.4,1843.3,5.94]
[1743435326508,5.42517,1843.3,1843.1,0.05]
[1743435326709,8.42446,1843.5,1843.2,5.941]
[1743435327083,8.45779183,1843.5,1843.2,5.941]
[1743435327279,0.7935,1843.7,1843.2,7.08265]
[1743435327482,5.42388,1843.7,1843.4,0.7662]
[1743435327685,5.42417,1843.6,1843.4,0.7662]
[1743435328896,5.42344,1843.9,1843.4,0.7662]
[1743435329114,5.42344,1843.9,1843.6,5.42416]
[1743435329309,5.42344,1843.9,1843.7,5.941]
[1743435329517,5.42358,1843.8,1843.7,5.941]
[1743435330087,3.0,1844.0,1843.8,0.8165]
[1743435330293,0.03333183,1844.1,1843.8,0.8165]
[1743435330614,5.42274,1844.1,1843.8,6.24]
[1743435330934,0.03333183,1844.2,1843.8,0.8165]
[1743435330935,5.42328,1844.0,1843.8,0.8165]
[1743435331141,5.42328,1844.0,1843.6,31.28]
[1743435331142,5.42358,1843.8,1843.6,31.28]
[1743435331321,3.03333183,1843.7,1842.8,31.28]
[1743435331636,9.44161577,1843.6,1843.2,6.2779221]
[1743435331936,5.42443,1843.6,1843.2,6.2779221]
[1743435332085,8.45732183,1843.7,1843.2,7.45326531]
[1743435332291,8.45722183,1843.7,1843.2,7.45326531]
[1743435332528,10.84858,1843.6,1843.2,12.87839531]
[1743435332733,5.22752431,1843.8,1843.2,12.87839531]
[1743435332734,5.42378,1843.8,1843.4,0.55]
[1743435332882,5.42387,1843.7,1843.4,0.55]
[1743435333084,5.42378,1843.8,1843.5,0.32739544]
[1743435333327,3.0,1843.8,1843.5,5.75180544]
[1743435333641,3.0,1843.8,1843.5,5.80592525]
[1743435333796,3.0,1843.8,1843.5,5.75180544]
[1743435334187,3.0,1844.0,1843.6,5.97401]
[1743435334383,8.45648183,1844.0,1843.7,5.941]
[1743435334685,10.84512,1844.2,1843.8,5.42347]
[1743435334928,5.42272,1844.1,1843.9,0.32562777]
[1743435335085,3.0,1844.0,1843.8,0.55]
[1743435335288,3.0,1844.0,1843.9,0.32562777]
[1743435335486,3.0,1844.0,1843.8,0.55]
[1743435335681,3.0,1844.0,1843.9,0.32562777]
[1743435335887,0.03333183,1844.4,1844.1,5.42269]
[1743435336111,6.19171,1844.3,1844.2,6.26459359]
[1743435336295,9.22504183,1844.3,1844.2,6.26459359]
[1743435336782,3.03333183,1844.3,1844.2,6.26459359]
[1743435337100,5.42211,1844.3,1844.2,6.26459359]
[1743435337309,8.45522183,1844.4,1844.2,6.26459359]
[1743435337498,8.42189,1844.4,1844.2,6.89105295]
[1743435338129,5.42211,1844.3,1844.2,6.89105295]
[1743435338432,5.42211,1844.3,1844.2,6.26459359]
[1743435338724,3.0,1844.4,1844.2,11.68691359]
[1743435338928,8.42192,1844.4,1844.2,6.26459359]
[1743435339299,5.42211,1844.3,1844.2,6.26459359]
[1743435339495,8.42192,1844.4,1844.2,6.26459359]
[1743435339810,3.0,1844.4,1844.2,6.26459359]
[1743435340009,0.03333183,1844.8,1844.3,0.7988]
[1743435340189,5.42106,1844.7,1844.3,6.22077]
[1743435340390,5.42106,1844.7,1844.4,0.32028097]
[1743435340593,0.03333183,1844.6,1844.4,0.32028097]
[1743435340788,0.03333183,1844.6,1844.3,6.22077]
[1743435341023,5.42199,1844.4,1844.1,31.279]
[1743435341329,5.45532183,1844.4,1844.2,5.939]
[1743435341487,8.42154,1844.5,1844.2,5.939]
[1743435341691,8.45487183,1844.5,1844.2,5.939]
[1743435342316,5.42183,1844.4,1844.2,5.939]
[1743435342709,13.84325,1844.5,1844.2,5.939]
[1743435343023,5.45516183,1844.4,1844.2,5.939]
[1743435343599,5.42183,1844.4,1844.2,5.939]
[1743435343919,8.42154,1844.5,1844.3,6.2585609]
[1743435344103,8.45487183,1844.5,1844.3,6.2585609]
[1743435344312,5.42064,1844.8,1844.4,0.7869]
[1743435344510,5.42064,1844.8,1844.5,5.42141]
[1743435344718,5.4211,1844.7,1844.5,0.32000108]
[1743435345032,8.45455183,1844.6,1844.5,0.32000108]
[1743435345188,10.84446,1844.3,1843.9,5.42315]
[1743435345499,5.42262,1844.2,1844.0,0.32140085]
[1743435345703,5.45619183,1844.1,1844.0,0.32140085]
[1743435348002,5.45686183,1843.9,1843.5,5.938]
[1743435348208,0.03333183,1843.9,1843.5,11.36232]
[1743435348406,5.45667183,1843.9,1843.5,11.36232]
[1743435348594,10.88022183,1843.9,1843.6,1.136232]
[1743435348932,0.03333183,1843.9,1843.6,0.7962]
[1743435349141,5.45680183,1843.9,1843.6,0.7962]
[1743435349427,10.84746,1843.8,1843.5,5.938]
[1743435349623,0.03333183,1843.7,1843.4,32.0697]
[1743435349847,5.45723183,1843.7,1843.6,5.937]
[1743435351221,0.03333183,1843.7,1843.6,5.937]
[1743435351424,5.45720183,1843.7,1843.6,5.937]
[1743435352446,5.42446,1843.5,1843.4,31.274]
[1743435352926,5.42446,1843.5,1843.4,37.212]
[1743435353126,6.17898,1843.6,1843.4,37.212]
[1743435353300,6.21231183,1843.6,1843.4,37.212]
[1743435353500,5.42446,1843.5,1843.4,37.212]
[1743435353915,5.45779183,1843.5,1843.4,37.212]
[1743435354494,9.62146901,1843.5,1843.1,0.05]
[1743435354805,9.18174,1843.2,1843.1,0.05]
[1743435354996,9.21507183,1843.2,1843.1,0.05]
[1743435356221,3.03333183,1843.2,1843.1,0.05]
[1743435356526,8.45867183,1843.2,1843.1,0.05]
[1743435356914,10.29012123,1843.2,1843.1,0.05]
[1743435357231,3.03333183,1843.2,1843.1,0.05]
[1743435357726,8.45867183,1843.2,1843.1,0.05]
[1743435358998,8.45867183,1843.2,1843.1,0.8341]
[1743435358999,3.0,1843.2,1843.1,0.8341]
[1743435359198,4.01742577,1843.6,1843.1,0.8341]
[1743435359199,0.03333183,1843.4,1843.1,6.25974]
[1743435359398,0.03333183,1843.5,1843.3,5.42502]
[1743435359598,0.03333183,1843.5,1843.3,1.085032]
[1743435359835,0.41538561,1843.9,1843.4,6.20885]
[1743435360010,5.45711183,1843.8,1843.5,5.938]
[1743435360395,5.42411,1843.7,1843.6,5.939]
[1743435361003,5.83337866,1843.9,1843.6,5.939]
[1743435361218,0.03333183,1843.8,1843.6,12.499326]
[1743435361427,0.03333183,1844.0,1843.7,6.18957]
[1743435361697,5.45634183,1844.0,1843.7,6.18957]
[1743435362127,5.45634183,1844.0,1843.7,0.7659]
[1743435362326,0.03333183,1844.0,1843.8,5.42348]
[1743435362523,0.03333183,1844.0,1843.8,6.042418]
[1743435362723,2.10438711,1844.1,1843.8,0.618938]
[1743435362925,2.10438711,1844.1,1843.7,0.7659]
[1743435363130,0.03333183,1844.0,1843.7,6.18973]
[1743435363532,5.45642183,1844.0,1843.7,0.7659]
[1743435363859,5.42358,1843.8,1843.6,16.129]
[1743435364037,9.4747676,1843.7,1843.3,0.8151]
[1743435364201,5.42475,1843.4,1843.3,5.938]
[1743435364404,5.45808183,1843.4,1843.3,5.938]
[1743435364908,8.45808183,1843.4,1843.3,5.938]
[1743435365230,8.45808183,1843.4,1843.3,6.7631]
[1743435365231,3.0,1843.4,1843.3,6.7631]
[1743435365413,5.42416,1843.7,1843.3,12.18803]
[1743435365607,3.0,1843.6,1843.3,13.949302]
[1743435365929,3.0,1843.7,1843.5,5.42441]
[1743435366104,3.0,1843.9,1843.3,8.524432]
[1743435366303,5.424,1843.7,1843.3,12.18801]
[1743435366504,8.424,1843.7,1843.3,12.18801]
[1743435366702,5.42448,1843.5,1843.3,6.7631]
[1743435366900,0.8003,1844.0,1843.3,7.3131]
[1743435367213,5.42389,1843.7,1843.3,12.18811]
[1743435367524,5.45722183,1843.7,1843.3,13.406811]
[1743435367737,3.0,1843.8,1843.4,0.55]
[1743435367937,8.4237,1843.8,1843.4,5.97473]
[1743435368120,5.45729183,1843.7,1843.3,13.406931]
[1743435368320,5.45739183,1843.7,1843.3,12.18812]
[1743435368735,5.45739183,1843.7,1843.3,17.61301]
[1743435369046,5.4246,1843.5,1843.3,6.7631]
[1743435369265,5.42475,1843.4,1843.3,5.938]
[1743435369432,5.45793183,1843.5,1843.3,5.938]
[1743435369618,0.03333183,1843.5,1843.4,5.42475]
[1743435369834,0.03333183,1843.7,1843.3,11.36291]
[1743435370027,8.42434,1843.6,1843.3,5.938]
[1743435370218,3.03333183,1843.6,1843.3,11.36296]
[1743435370434,8.45750183,1843.6,1843.3,5.938]
[1743435370954,8.45750183,1843.6,1843.3,11.36304]
[1743435371125,3.03333183,1843.6,1843.3,11.36292]
[1743435371325,3.0,1843.6,1843.3,11.36292]
[1743435371521,8.45753183,1843.6,1843.3,11.36292]
[1743435371728,3.03333183,1843.6,1843.3,11.36288]
[1743435372226,8.45760183,1843.6,1843.3,5.938]
[1743435372535,9.84575401,1843.6,1843.3,11.36304]
[1743435372852,4.42148401,1843.6,1843.3,11.36304]
[1743435373152,7.64833647,1844.1,1843.5,0.8289]
[1743435373454,2.2589683,1844.1,1843.5,1.3789]
[1743435373634,2.22563647,1844.1,1844.0,5.42299]
[1743435373953,0.03333183,1844.5,1844.3,5.42193]
[1743435374252,0.03333183,1844.6,1844.4,6.21277]
[1743435374557,4.12384452,1844.9,1844.6,5.42122]
[1743435374725,8.42069,1844.8,1844.5,5.937]
[1743435374921,3.0,1844.8,1844.6,5.42122]
[1743435375158,4.12384452,1844.9,1844.7,5.42064]
[1743435375327,4.12384452,1844.9,1844.7,6.504826]
[1743435375830,4.12384452,1844.9,1844.6,5.4212]
[1743435376035,4.12384452,1844.9,1844.7,5.42092]
[1743435377032,7.12384452,1844.9,1844.6,5.42121]
[1743435377345,12.54435452,1844.9,1844.5,11.35851]
[1743435377659,0.03333183,1844.8,1844.5,11.35851]
[1743435377825,5.45398183,1844.8,1844.5,5.937]
[1743435378156,5.45398183,1844.8,1844.6,5.937]
[1743435378354,0.03333183,1844.8,1844.6,11.35809]
[1743435378648,7.12384452,1844.9,1844.7,6.556739]
[1743435379345,4.12384452,1844.9,1844.8,6.18774]
[1743435379677,4.12384452,1844.9,1844.8,6.73774]
[1743435380155,6.22112,1845.8,1845.4,5.41887]
[1743435380355,0.03333183,1845.7,1845.5,5.935]
[1743435380732,5.45153183,1845.7,1845.5,5.935]
[1743435381125,5.41829,1845.6,1845.5,5.935]
[1743435381427,8.41829,1845.6,1845.5,5.935]
[1743435381660,3.0,1845.6,1845.5,5.935]
[1743435381863,0.05,1845.9,1845.6,5.41829]
[1743435382040,5.50085183,1845.9,1845.5,11.35342]
[1743435382358,3.0,1845.8,1845.5,16.77183]
[1743435382563,3.0,1845.8,1845.5,16.77179]
[1743435382765,8.4177,1845.8,1845.5,5.935]
[1743435383130,5.41828,1845.7,1845.6,5.934]
[1743435383460,8.41828,1845.7,1845.3,5.41906]
[1743435383664,8.41828,1845.7,1845.6,5.932]
[1743435384047,13.20540577,1845.7,1845.6,5.932]
[1743435384372,8.41799,1845.7,1845.6,5.932]
[1743435384932,9.98210709,1845.7,1845.6,5.932]
[1743435385360,8.41799,1845.7,1845.6,5.932]
[1743435385663,8.45132183,1845.7,1845.6,5.932]
[1743435386443,6.20138,1845.5,1845.4,5.931]
[1743435386658,8.41921,1845.3,1845.0,5.931]
[1743435386859,8.41921,1845.3,1844.8,36.69635]
[1743435386860,5.41976,1845.1,1844.8,31.276]
[1743435387167,5.45357183,1845.0,1844.9,5.931]
[1743435387680,5.42024,1845.0,1844.9,5.931]
[1743435387964,5.42005,1845.0,1844.9,5.931]
[1743435388346,10.87310183,1845.1,1844.9,5.931]
[1743435388668,5.42005,1845.0,1844.9,5.931]
[1743435388870,5.42034,1844.9,1844.8,31.276]
[1743435389163,0.03333183,1845.0,1844.8,37.207]
[1743435389370,0.03333183,1845.0,1844.8,40.9277]
[1743435389557,3.03333183,1845.1,1844.8,46.34822]
[1743435389763,0.03333183,1845.1,1844.8,40.9277]
[1743435390068,5.86985083,1845.1,1844.8,37.207]
[1743435390276,5.45311183,1845.1,1844.8,37.207]
[1743435390447,8.45311183,1845.1,1844.8,37.207]
[1743435390765,5.42034,1844.9,1844.8,37.207]
[1743435391067,5.45367183,1844.9,1844.8,37.207]
[1743435391242,5.42034,1844.9,1844.8,37.207]
[1743435392269,8.45341183,1845.0,1844.8,31.276]
[1743435392468,3.03333183,1845.0,1844.8,37.207]
[1743435392768,8.45348183,1845.0,1844.8,37.207]
[1743435393071,3.03333183,1845.0,1844.8,41.469782]
[1743435393256,8.45342183,1845.0,1844.8,41.469782]
[1743435393463,8.45342183,1845.0,1844.8,37.207]
[1743435393768,13.87365183,1845.0,1844.8,37.207]
[1743435393976,5.42034,1844.9,1844.8,31.276]
[1743435394268,5.42034,1844.9,1844.8,37.207]
[1743435394675,8.42009,1845.0,1844.8,37.207]
[1743435394676,3.0,1845.0,1844.8,37.207]
[1743435394871,3.03333183,1845.0,1844.8,41.46979]
[1743435395070,3.0,1845.1,1844.8,47.66383]
[1743435395276,10.83855,1845.3,1844.8,47.66383]
[1743435395567,5.45239183,1845.4,1845.0,5.42003]
[1743435395756,5.45238183,1845.4,1845.1,0.542003]
[1743435395957,5.45238183,1845.4,1845.1,5.961713]
[1743435396163,0.03333183,1845.5,1845.2,6.18681]
[1743435396358,10.27865577,1845.9,1845.4,5.41874]
[1743435396359,5.45117183,1845.8,1845.4,5.41874]
[1743435396669,3.0,1845.6,1845.3,11.35008]
[1743435396875,3.03333183,1845.6,1845.3,12.561908]
[1743435397177,3.03333183,1845.6,1845.3,7.142748]
[1743435397178,10.87015183,1845.6,1845.3,7.142748]
[1743435397339,5.45163183,1845.6,1845.3,7.142748]
[1743435397545,13.8362,1845.7,1845.3,12.561908]
[1743435397743,4.01742577,1845.8,1845.3,7.142748]
[1743435397744,5.41859,1845.5,1845.3,7.142748]
[1743435397975,5.45220183,1845.4,1845.3,5.931]
[1743435398571,10.2603276,1845.4,1845.3,5.931]
[1743435398971,10.67746693,1845.4,1845.3,5.931]
[1743435399176,10.2603276,1845.4,1845.3,5.931]
[1743435399557,5.4196,1845.2,1844.8,57.35659]
[1743435399755,5.45293183,1845.2,1844.9,5.93]
[1743435399953,3.03333183,1845.3,1844.9,11.239659]
[1743435400159,0.03333183,1845.3,1844.9,11.239659]
[1743435400654,5.41956,1845.2,1844.9,16.659899]
[1743435400860,10.83918,1845.2,1844.9,11.239659]
[1743435401179,10.83918,1845.2,1845.0,5.929]
[1743435401180,5.45317183,1845.1,1845.0,5.929]
[1743435401391,4.01742577,1845.2,1845.1,5.41976]
[1743435401392,0.03333183,1845.2,1845.1,5.41976]
[1743435401589,3.0,1845.4,1845.0,6.7439]
[1743435401892,5.45137183,1845.7,1845.3,5.96917]
[1743435402051,3.0,1845.4,1845.1,15.60965]
[1743435402250,8.41895,1845.4,1845.1,18.387009]
[1743435402676,8.45228183,1845.4,1845.1,18.387009]
[1743435402877,5.4193,1845.3,1845.2,5.929]
[1743435403845,5.45263183,1845.3,1845.2,5.929]
[1743435404379,5.45263183,1845.3,1844.8,32.0909]
[1743435404380,5.4199,1845.1,1844.8,32.0909]
[1743435404587,5.45323183,1845.1,1844.9,5.929]
[1743435405085,8.42034,1844.9,1844.8,31.276]
[1743435405287,12.4710976,1844.9,1844.8,37.204]
[1743435405592,5.42165,1844.5,1844.1,36.67868]
[1743435405786,5.42165,1844.5,1844.2,5.928]
[1743435405787,0.03333183,1844.4,1844.2,5.928]
[1743435406163,5.45498183,1844.5,1844.3,0.20044706]
[1743435406773,5.42181,1844.4,1844.3,0.20044706]
[1743435407099,5.4224,1844.2,1844.1,37.184]
[1743435407398,8.42299,1844.0,1843.7,5.928]
[1743435407695,3.0,1844.0,1843.7,11.35177]
[1743435408088,3.03333183,1844.0,1843.7,11.35177]
[1743435408289,3.0,1844.0,1843.7,11.35177]
[1743435408592,3.0,1844.0,1843.7,13.02927]
[1743435408778,8.42302,1844.0,1843.7,13.02927]
[1743435408979,8.42302,1844.0,1843.7,7.60559]
[1743435409182,5.42392,1843.7,1843.5,5.929]
[1743435409383,0.03333183,1843.7,1843.6,5.42417]
[1743435409695,5.45700183,1843.8,1843.5,5.928]
[1743435410689,3.03333183,1843.8,1843.5,11.35219]
[1743435410895,3.03333183,1843.8,1843.5,12.487409]
[1743435411211,3.0,1843.8,1843.5,12.487409]
[1743435411497,3.0,1843.8,1843.5,17.911709]
[1743435411790,3.0,1843.8,1843.6,5.42416]
[1743435411978,3.0,1844.1,1843.8,5.42357]
[1743435412179,3.03333183,1844.1,1843.7,6.21822]
[1743435412378,8.45620183,1844.1,1843.7,6.21822]
[1743435412783,5.423,1844.0,1843.7,0.7944]
[1743435413205,5.45633183,1844.0,1843.7,0.7944]
[1743435413367,0.03333183,1844.0,1843.7,0.7944]
[1743435413694,3.03333183,1844.1,1843.7,6.839999]
[1743435413912,3.0,1844.1,1843.7,6.839999]
[1743435414074,3.03333183,1844.1,1843.7,0.7944]
[1743435414278,5.42331,1843.9,1843.5,11.90237]
[1743435414595,5.45664183,1843.9,1843.6,5.93]
[1743435415093,3.0,1844.1,1843.7,5.42366]
[1743435415264,8.45614183,1844.1,1843.6,11.35397]